Cogmind - Beta 14 @@@ ROGUE MODE // 2024.10.04 @ 18:05:03 Player: bluemonk Result: Destroyed by D-53 Grenadier with Mini Grenade Launcher Performance ------------- Evolutions (1) 500 Regions Visited (3) 600 Robots Destroyed (27) 135 Value Destroyed (663) 663 Prototype IDs (7) 140 Alien Tech Used (0) 0 Bonus (0) 0 TOTAL SCORE: 2038 Bonus ------- None Cogmind --------- Core Integrity 0/400 Matter 264/300 Energy 100/100 System Corruption 0% Temperature Cool (0) Movement Core (200) Ox3 Location -9/Mines Parts ------- > --- POWER (1) -------- (None) > --- PROPULSION (4) --- (None) > --- UTILITY (2) ------ Small Storage Unit Weapon Shielding > --- WEAPON (2) ------- Improved Assault Rifle Improved Datajack > --- INVENTORY (8) ---- Light Ion Engine Light Treads Light Treads Thermal Generator Light Assault Rifle Peak State ------------ > --- POWER ------------ Cooled Ion Engine > --- PROPULSION ------- Light Treads Light Treads Aluminum Leg Aluminum Leg > --- UTILITY ---------- Small Storage Unit Core Shielding > --- WEAPON ----------- Improved Medium Laser Improved Assault Rifle > --- INVENTORY -------- Light Ion Engine Light Ion Engine Light Treads Light Treads Thermal Generator Large Matter Pod Weapon Shielding Light Assault Rifle [Rating: 16] Favorites ----------- Power Ion Engine Engine Ion Engine Propulsion Aluminum Leg Treads Light Treads Leg Aluminum Leg Utility Small Storage Unit Storage Small Storage Unit Protection Core Shielding Weapon Assault Rifle Energy Gun Improved Medium Laser Ballistic Gun Assault Rifle Special Melee Weapon Improved Datajack Build | -11 -10 -9 -9 ------- Run | Yrd Mat Mat Min Slots Evolved 2 | . . 2 . Power . | . . . . Propulsion 2 | . . 2 . Utility . | . . . . Weapon . | . . . . Parts Attached 31 | 6 6 14 5 Power 4 | 1 1 1 1 Engine 4 | 1 1 1 1 Core . | . . . . Reactor . | . . . . Propulsion 15 | 2 3 8 2 Treads 4 | . . 4 . Leg 11 | 2 3 4 2 Wheel . | . . . . Hover . | . . . . Flight . | . . . . Utility 3 | 1 1 . 1 Device . | . . . . Storage 1 | 1 . . . Processor . | . . . . Hackware . | . . . . Protection 2 | . 1 . 1 Artifact . | . . . . Weapon 9 | 2 1 5 1 Energy Gun 3 | . 1 2 . Energy Cannon . | . . . . Ballistic Gun 5 | 2 . 3 . Ballistic Cannon . | . . . . Launcher . | . . . . Special Weapon . | . . . . Impact Weapon . | . . . . Slashing Weapon . | . . . . Piercing Weapon . | . . . . Special Melee Weapon 1 | . . . 1 Unidentified Prototypes 3 | . . 3 . Parts Lost 14 | . 2 3 9 Power 2 | . . . 2 Propulsion 9 | . 2 2 5 Utility 1 | . . . 1 Weapon 2 | . . 1 1 Highest Loss Streak 8 | . 1 2 8 To Critical Strikes 2 | . . 1 1 Average Slot Usage (%) 94 | . 95 96 80 Engine 11 | . 14 11 8 Treads 3 | . . 4 13 Leg 31 | . 25 36 22 Storage 12 | . 14 11 11 Protection 11 | . 11 11 7 Energy Gun 8 | . 6 11 4 Ballistic Gun 14 | . 21 10 11 Peak Build Rating 16 | 6 7 16 16 Average Rating 9 | 4 6 10 12 On Entrance 7 | . 6 7 16 Naked Turns . | . . . . Heaviest Build 20 | 14 15 20 20 Greatest Support 40 | 20 20 40 30 Greatest Overweight (x) 4 | . 1 . 4 Average Overweight (x) . | . . . . Largest Inventory Capacity 8 | 8 8 8 8 Average Capacity 7 | 6 8 8 8 Most Carried 8 | 6 8 8 8 Average Carried 7 | 2 7 7 7 Final Capacity 8 | 8 8 8 8 Final Carried 8 | 6 8 8 5 Class Distribution -------------------- 66% | Mutant 33% | Scavenger-Mutant Dominant Class ---------------- Mutant | -10/Materials Scavenger-Mutant | -9/Materials Mutant | -9/Mines Resources | -11 -10 -9 -9 ----------- Run | Yrd Mat Mat Min Matter Collected 798 | 166 176 398 58 Remotely . | . . . . Salvage Created 902 | . 209 478 215 Parts 55 | . 21 30 4 Haulers Intercepted 1 | . . 1 . Recyclers Shooed . | . . . . Parts Field Recycled . | . . . . Retrieved Matter . | . . . . Parts Self-Destructed . | . . . . Prevented . | . . . . Kills | -11 -10 -9 -9 ------- Run | Yrd Mat Mat Min Combat Hostiles Destroyed 28 | . 7 13 8 Guns 28 | . 7 13 8 Classes Destroyed 7 | . 3 3 1 Hauler 1 | . . 1 . Mechanic 1 | . . 1 . Watcher 2 | . 1 1 . Swarmer 10 | . 3 7 . Grunt 11 | . 4 4 3 Sentry 2 | . . 2 . Assembled 5 | . . . 5 Best Kill Streak 5 | . 3 5 5 Combat Bots Only 5 | . 3 4 5 Max Kills in Single Turn 2 | . 1 1 2 Gunslinging 1 | . . . 1 Exploded . | . . . . Melee . | . . . . Uniques/NPCs Destroyed . | . . . . Combat | -11 -10 -9 -9 -------- Run | Yrd Mat Mat Min Hostile Shots Fired 213 | . 54 81 78 Missed 53 | . 14 22 17 Damage Taken 2181 | . 470 515 1196 Core 439 | . 36 85 318 Absorbed by Shields . | . . . . Redirected to Shielding 47 | . 3 15 29 Core Remaining (%) 92 | 100 85 . . Volleys Fired 106 | . 36 41 29 Largest 2 | . 2 2 2 Hottest 79 | . 60 76 79 Shots Fired 186 | . 72 79 35 Gun 186 | . 72 79 35 Cannon . | . . . . Launcher . | . . . . Special . | . . . . Kinetic 117 | . 49 39 29 Thermal 69 | . 23 40 6 Explosive . | . . . . Electromagnetic . | . . . . Robot Hit Streak 8 | . 6 8 8 Robot Miss Streak 8 | . 7 8 1 Penetration Max . | . . . . Secondary Targets 6 | . 2 2 2 Max Gunslinging Chain 1 | . 1 1 1 Shots Hit Robots 107 | . 38 39 30 Core Hits 56 | . 14 24 18 Critical Kills . | . . . . Critical Parts Destroyed . | . . . . Critical Strikes 2 | . . 2 . Burn 2 | . . 2 . Melee Attacks 2 | . . . 2 Impact . | . . . . Slashing . | . . . . Piercing . | . . . . Sneak Attacks . | . . . . Combat Hostiles . | . . . . Follow-up Attacks . | . . . . Damage Inflicted 1439 | . 439 537 463 Guns 1438 | . 439 536 463 Cannons . | . . . . Explosions . | . . . . Melee . | . . . . Ramming 1 | . . 1 . Kinetic 905 | . 296 232 377 Thermal 533 | . 143 304 86 Explosive . | . . . . Electromagnetic . | . . . . Impact . | . . . . Slashing . | . . . . Piercing . | . . . . Highest Corruption 1 | . 1 . . Average Corruption 1 | . 1 . . Corruption Purged . | . . . . Corruption Blocked . | . . . . Effects 4 | . 4 . . Matter Fused 2 | . 2 . . Energy Discharges 1 | . 1 . . Data Loss (minor) 1 | . 1 . . Overload Shots . | . . . . Overflow Damage . | . . . . Projectiles . | . . . . Explosions . | . . . . Melee . | . . . . Knockbacks . | . . . . Impact . | . . . . Kinetic . | . . . . Secondary . | . . . . Self-Inflicted Damage . | . . . . Shots . | . . . . Rammed . | . . . . Targets Rammed 1 | . . 1 . Kicked 1 | . . 1 . Crushed . | . . . . Highest Temperature 183 | . 71 183 108 Average Temperature 54 | . 30 68 54 Received Heat Transfer 356 | . 171 72 113 Siege Activations . | . . . . Robots Corrupted . | . . . . Combat Hostiles . | . . . . Parts Fried . | . . . . Impact Corruptions . | . . . . Robots Melted . | . . . . Combat Hostiles . | . . . . Parts Melted 1 | . . . 1 Heat Transferred 1338 | . 325 828 185 Parts Sabotaged . | . . . . Parts Stolen . | . . . . Parts Stripped . | . . . . Power Chain Reactions . | . . . . Alert | -11 -10 -9 -9 ------- Run | Yrd Mat Mat Min Peak Influence 365 | . 202 365 165 Initial 105 | . . . 105 Average 132 | . 103 172 138 Maximum Alert Level 1 | . 1 1 . Low Security (%) 76 | 100 84 63 100 Level 1 23 | . 15 36 . Level 2 . | . . . . Level 3 . | . . . . Level 4 . | . . . . Level 5 . | . . . . High Security . | . . . . Max Security . | . . . . Squads Dispatched 1 | . . 1 . Investigation . | . . . . Extermination . | . . . . Reinforcement 1 | . . 1 . Assault . | . . . . Garrison . | . . . . Intercept . | . . . . Searches Triggered . | . . . . Construction Impeded . | . . . . Haulers Reinforced . | . . . . Active Scanning Responses . | . . . . Cargo Convoy Interrupts . | . . . . Stealth | -11 -10 -9 -9 --------- Run | Yrd Mat Mat Min Distress Signals 3 | . 1 2 . Communications Jammed . | . . . . Distress Signals . | . . . . Times Spotted 65 | . 12 22 31 Peak Tracking Total 20 | . 3 4 20 Tactical Retreats 4 | . . 2 2 Traps | -11 -10 -9 -9 ------- Run | Yrd Mat Mat Min Traps Triggered 3 | . 1 2 . Indirectly . | . . . . Trap Hack Attempts . | . . . . Triggered . | . . . . Disarmed . | . . . . Reprogrammed . | . . . . Reused . | . . . . Traps Extracted . | . . . . Installed . | . . . . Triggered . | . . . . Machines | -11 -10 -9 -9 ---------- Run | Yrd Mat Mat Min Machines Disabled . | . . . . Max in Single Turn . | . . . . Machines Repaired . | . . . . Machines Dismantled . | . . . . Machines Sabotaged . | . . . . Overloaded Fab Kills . | . . . . Hacking | -11 -10 -9 -9 --------- Run | Yrd Mat Mat Min Machines Accessed 6 | . 3 3 . Terminals 5 | . 2 3 . Fabricators . | . . . . Repair Stations 1 | . 1 . . Recycling Units . | . . . . Scanalyzers . | . . . . Garrison Access . | . . . . Total Hacks 16 | . 9 7 . Successful 6 | . 2 4 . Failed 10 | . 7 3 . Catastrophic 4 | . 3 1 . Database Lockouts . | . . . . Manual 4 | . 1 3 . Terminals 14 | . 7 7 . Fabricators . | . . . . Repair Stations 2 | . 2 . . Recycling Units . | . . . . Scanalyzers . | . . . . Garrison Access . | . . . . Terminal Hacks 5 | . 1 4 . Prototype ID Bank 2 | . . 2 . Branch Access Points 1 | . . 1 . Alert Level 1 | . 1 . . Dispatch Records 1 | . . 1 . Fabricator Hacks . | . . . . Repair Station Hacks 1 | . 1 . . Refit 1 | . 1 . . Recycling Unit Hacks . | . . . . Scanalyzer . | . . . . Garrison Access Hacks . | . . . . Unauthorized Hacks . | . . . . Terminals . | . . . . Fabricators . | . . . . Repair Stations . | . . . . Recycling Units . | . . . . Scanalyzers . | . . . . Garrison Access . | . . . . Data Cores Recovered . | . . . . Used . | . . . . Hacking Detections 6 | . 3 3 . Full Trace Events . | . . . . Feedback Events . | . . . . Feedback Blocked . | . . . . Robot Schematics Acquired . | . . . . Robots Built . | . . . . Authchips . | . . . . Time . | . . . . Total Robot Build Rating . | . . . . Part Schematics Acquired . | . . . . Parts Built . | . . . . Authchips . | . . . . Time . | . . . . Total Part Build Rating . | . . . . Parts Repaired . | . . . . Time . | . . . . Parts Recycled . | . . . . Recycled Matter . | . . . . Retrieved Matter . | . . . . Retrieved Components . | . . . . Parts Scanalyzed . | . . . . Part Schematics Acquired . | . . . . Parts Damaged . | . . . . Bothacking | -11 -10 -9 -9 ------------ Run | Yrd Mat Mat Min Used RIF Installer . | . . . . Robots Hacked 1 | . . . 1 Non-combat . | . . . . Combat 1 | . . . 1 Robot Hacks Applied 1 | . . . 1 parse_system 1 | . . . 1 Relay Couplers Released . | . . . . Fabnet Peak Effective % . | . . . . Robots Rewired . | . . . . Allies Hacked . | . . . . Hacks Repelled . | . . . . Allies | -11 -10 -9 -9 -------- Run | Yrd Mat Mat Min Total Allies . | . . . . Largest Group . | . . . . Highest-Rated Group . | . . . . Highest-Rated Ally . | . . . . Total Orders . | . . . . Ally Attacks . | . . . . Total Damage . | . . . . Kills . | . . . . Allies Corrupted . | . . . . Allies Melted . | . . . . Intel | -11 -10 -9 -9 ------- Run | Yrd Mat Mat Min Robot Analysis Total . | . . . . Derelict Logs Recovered . | . . . . Drone Launches . | . . . . Drone Recoveries . | . . . . Exploration | -11 -10 -9 -9 ------------- Run | Yrd Mat Mat Min Turns Passed 1151 | 79 419 551 102 Spaces Moved 654 | 58 242 334 20 Core 8 | 7 . . 1 Treads 2 | . . 2 . Legs 644 | 51 242 332 19 Wheels . | . . . . Hover . | . . . . Flight . | . . . . Fastest Speed 50 | 50 120 120 120 Average Speed 121 | 111 122 120 151 Slowest Speed 250 | 120 190 160 250 Overloaded Moves . | . . . . Propulsion Burnouts . | . . . . Robots Hopped . | . . . . Cave-ins Triggered . | . . . . Exploration Rate (%) 19 | 5 33 32 7 Regions Visited 3 Branch Regions 1 Pre-discovered Areas . | . . . . Known Exits Taken 1 | . . 1 . Unknown Exits Taken 2 | 1 1 . . Scrap Searched . | . . . . Spaces Dug . | . . . . Terrain Destroyed . | . . . . Melee . | . . . . Projectile . | . . . . AOE . | . . . . Terrain Rammed . | . . . . Walls Destroyed . | . . . . Machines Disabled . | . . . . Actions | -11 -10 -9 -9 --------- Run | Yrd Mat Mat Min Total 829 | 70 294 408 57 Wait 5 | . 1 4 . Move 651 | 57 241 333 20 Hop . | . . . . Pick Up 19 | 7 4 8 . Fast Attach 19 | 5 4 8 2 Attach 7 | 1 . 3 3 Detach . | . . . . Swap 5 | . 2 3 . Drop 14 | . 6 7 1 Fire 106 | . 36 41 29 Melee 2 | . . . 2 Ram . | . . . . Kick 1 | . . 1 . Crush . | . . . . Escape Stasis . | . . . . Rewire . | . . . . Trap . | . . . . Miscellaneous . | . . . . Route ------- -11/Scrapyard -10/Materials -9/Materials (discovered 2 exits: [*Mat] / *Min) -9/Mines History --------- Turn | Location | Event 3 | -11/Scrapyard | Discovered new exit (range 15) 80 | -11/Scrapyard | Entered Materials 328 | -10/Materials | Build established: Mutant 437 | -10/Materials | Discovered new exit (range 8) 499 | -10/Materials | Entered another Materials area 499 | -9/Materials | Evolved 2 slots: Propulsion x2 706 | -9/Materials | Identified exit to Mines 851 | -9/Materials | Build established: Scavenger-Mutant 918 | -9/Materials | Discovered new exit (range 16) 1050 | -9/Materials | Entered Mines 1082 | -9/Mines | Assembled infested the area 1143 | -9/Mines | Core integrity fell below 50% 1150 | -9/Mines | Core integrity fell below 20% 1152 | -9/Mines | Destroyed by D-53 Grenadier with Mini Grenade Launcher Last Messages --------------- as-51789 destroyed. as-74348 destroyed. Aluminum Leg destroyed. The unstable cave ceiling collapses. Critical hit (Destroy). Aluminum Leg destroyed. as-59619 destroyed. as-97723 destroyed. as-14438 destroyed. as-29499 destroyed. Lgt. Treads destroyed. as-77054 destroyed. U-05 Engineer lays Concrete. Aluminum Leg destroyed. The unstable cave ceiling collapses. Jacked D-53 Grenadier... >>parse_system Reading system data... Lgt. Ion Engine destroyed. as-28442 destroyed. Map ----- +----------------------------------------------------+ | ?????????????????????????????????????????????????? | | ?????????????????????????????????????????????????? | | ?????????????????????????????????????????????????? | | ?????????????????????????????????????????????????? | | ?????????????????????????????????????????????????? | | ?????????????????????????????????????????????????? | | ?????????????????????????????????????????????????? | | ?????????????????????????????????????????????????? | | ?????????????????????????????????????????????????? | | ?????????????????????????????????????????????????? | | ?????????????????????????????????????????????????? | | ?????????????????????????????????????????????????? | | ?????????????????????????????????????????????????? | | ?????????????????????????????????????????????????? | | ?????????????????????????????????????????????????? | | ?????????????????????####????????????????????????? | | ????????????????????## ###??????????????????????? | | ????????????????????# ##?????????????????????? | | ???????????????????## #?????????????????????? | | ??????????????????## ##????????????????????? | | ??????????????????# ##???????????????????? | | ??????????????????# ##??????????????????? | | ??????????????????## #??????????????????? | | ???????????????????# #??????????????????? | | ??????????????????### #??????????????????? | | ??????????????????# d @ ##??????????????????? | | ?????????????######## #??????????????????? | | ?????? "%" u d% #?????????????????? | | ???????????######### #????????????????? | | ???????????????????## ##????????????????? | | ???????????????????#### ##?????????????????? | | ??????????????????????## #??????????????????? | | ???????????????????????# #??????????????????? | | ???????????????????????# # #??????????????????? | | ???????????????????????### ??????????????????? | | ?????????????????????????# a####?????????????????? | | ?????????????????????????? ????????????????????? | | ?????????????????????????? ????????????????????? | | ?????????????????????????? ????????????????????? | | ?????????????????????????? ????????????????????? | | ?????????????????????????? ???????????????????? | | ?????????????????????????? ????????????????????? | | ?????????????????????????????????????????????????? | | ?????????????????????????????????????????????????? | | ?????????????????????????????????????????????????? | | ?????????????????????????????????????????????????? | | ?????????????????????????????????????????????????? | | ?????????????????????????????????????????????????? | | ?????????????????????????????????????????????????? | | ?????????????????????????????????????????????????? | +----------------------------------------------------+ Best States ------------- Heat Dissipation 28 Energy Generation 14 Energy Capacity 280 Matter Stores 300 Matter Capacity 300 Sight Range 16 Terrain Scan Density 10 Armor Coverage 80 Core Shielding 20 Weapon Shielding 33 Evasion (%) 55 Item Schematics ----------------- None Robot Schematics ------------------ None Fabricated ------------ Nothing Alien Tech Used ----------------- None Achievements -------------- Hunted Challenges ------------ None Game ------ Seed NeutrinoKineticWarhead Manual? 0 Play Time 00:21:27 Cumulative 18.4 hours Start 2024.10.04 @ 17:45:23 End 2024.10.04 @ 18:05:03 Sessions 1 Manual Loads 0 Difficulty Rogue Special Mode None Game No. 31 Rogue 31 Adventurer 0 Explorer 0 Win Type - Total 0 Types 0/0/0/0/0/0/0/0/0 Lore% 8 Gallery% 24 Achievement% 19 Wizard Run 0 Options --------- Layout 1 ASCII 0 Keyboard 0 Movement Numpad Keybinds 0 Fullscreen 1 Font 24/Smallcaps Map View 50x35 Zoom Use 0% Tactical HUD 0 Map Filters NONE Filters NONE Steam 1 RUN: cd1b53af-6da3-4e0b-85ec-a27bfc6debb4